fUST/lending_fUST_20241111
["ID","MTS","AMOUNT","RATE_DAILY","PERIOD"]
[341897522,1731273068406,-500.0,0.00025479,2]
[341897523,1731273068424,-268.13586982,0.00025479,2]
[341897524,1731273068438,-611.41,0.00025479,2]
[341897525,1731273068455,-156.054994,0.00025479,7]
[341897526,1731273068473,-156.054994,0.00025479,7]
[341897527,1731273068492,-151.0,0.00025479,7]
[341897528,1731273068507,-289.58071,0.00025479,7]
[341897529,1731273068523,-500.0,0.00025479,2]
[341897530,1731273068538,-228.81577421,0.00025479,2]
[341897531,1731273068554,-500.0,0.00025479,2]
[341897532,1731273068566,-500.0,0.00025479,2]
[341897533,1731273068580,-289.58071,0.00025479,7]
[341897534,1731273068595,-500.0,0.00025479,2]
[341897535,1731273068610,-162.813732,0.00025479,7]
[341897536,1731273068624,-500.0,0.00025479,2]
[341897537,1731273068641,-162.813732,0.00025479,7]
[341897538,1731273068656,-500.0,0.00025479,2]
[341897539,1731273068670,-500.0,0.00025479,2]
[341897540,1731273068684,-500.0,0.00025479,2]
[341897541,1731273068701,-500.0,0.00025479,2]
[341897542,1731273068715,-500.0,0.00025479,2]
[341897543,1731273068730,-500.0,0.00025479,2]
[341897544,1731273068745,-500.0,0.00025479,2]
[341897545,1731273068759,-500.0,0.00025479,2]
[341897546,1731273068774,-367.26148388,0.00025479,2]
[341897547,1731273068788,-2336.0,0.00025479,2]
[341897548,1731273068802,-500.0,0.00025479,2]
[341897549,1731273068816,-406.06965389,0.00025479,2]
[341897550,1731273068831,-500.0,0.00025479,2]
[341897551,1731273068845,-331.01478881,0.00025479,2]
[341897552,1731273068859,-380.8843324,0.00025479,2]
[341897553,1731273068873,-500.0,0.00025479,2]
[341897554,1731273068888,-500.0,0.00025479,2]
[341897555,1731273068902,-500.0,0.00025479,2]
[341897556,1731273068916,-500.0,0.00025479,2]
[341897557,1731273068931,-500.0,0.00025479,2]
[341897558,1731273068949,-166.276538,0.00025479,7]
[341897559,1731273068963,-505.39421013,0.00025479,2]
[341897560,1731273068977,-500.0,0.00025479,2]
[341897561,1731273068993,-500.0,0.00025479,2]
[341897562,1731273069007,-512.82172811,0.00025479,2]
[341897563,1731273069025,-500.0,0.00025479,2]
[341897564,1731273069039,-532.22766378,0.00025479,2]
[341897565,1731273069054,-961.83,0.00025479,2]
[341897566,1731273069069,-500.0,0.00025479,2]
[341897567,1731273069083,-500.0,0.00025479,2]
[341897568,1731273069097,-500.0,0.00025479,2]
[341897569,1731273069113,-500.0,0.00025479,2]
[341897570,1731273069129,-500.0,0.00025479,2]
[341897571,1731273069143,-500.0,0.00025479,2]
[341897572,1731273069158,-500.0,0.00025479,2]
[341897573,1731273069172,-500.0,0.00025479,2]
[341897574,1731273069187,-500.0,0.00025479,2]
[341897575,1731273069305,-502.05141123,0.00025479,2]
[341897576,1731273069315,-500.0,0.00025479,2]
[341897577,1731273069324,-500.0,0.00025479,2]
[341897578,1731273069333,-500.0,0.00025479,2]
[341897579,1731273069342,-519.24689973,0.00025479,2]
[341897580,1731273069351,-1887.1,0.00025479,2]
[341897581,1731273069360,-229.94480183,0.00025479,2]
[341897582,1731273069370,-2316.71,0.00025479,2]
[341897583,1731273069379,-500.0,0.00025479,2]
[341897584,1731273069388,-500.0,0.00025479,2]
[341897585,1731273069397,-500.0,0.00025479,2]
[341897586,1731273069406,-500.0,0.00025479,2]
[341897587,1731273069415,-500.0,0.00025479,2]
[341897588,1731273069424,-530.41,0.00025479,2]
[341897589,1731273069433,-500.0,0.00025479,2]
[341897590,1731273069442,-200.0,0.00025479,2]
[341897591,1731273069455,-9006.02,0.00025479,2]
[341897592,1731273069464,-622.22,0.00025479,2]
[341897593,1731273069473,-500.0,0.00025479,2]
[341897594,1731273069482,-500.0,0.00025479,2]
[341897595,1731273069491,-451.911779,0.00025479,7]
[341897596,1731273069500,-500.0,0.00025479,2]
[341897597,1731273069509,-451.911779,0.00025479,7]
[341897598,1731273069517,-500.0,0.00025479,2]
[341897599,1731273069527,-500.0,0.00025479,2]
[341897600,1731273069536,-500.0,0.00025479,2]
[341897601,1731273069545,-500.0,0.00025479,2]
[341897602,1731273069554,-500.0,0.00025479,2]
[341897603,1731273069562,-500.0,0.00025479,2]
[341897604,1731273069571,-500.0,0.00025479,2]
[341897605,1731273069581,-500.0,0.00025479,2]
[341897606,1731273069590,-500.0,0.00025479,2]
[341897607,1731273069599,-153.03031455,0.00025479,2]
[341897608,1731273069608,-263.61711387,0.00025479,2]
[341897609,1731273069618,-1016.26,0.00025479,2]
[341897610,1731273069627,-500.0,0.00025479,2]
[341897611,1731273069637,-500.0,0.00025479,2]
[341897612,1731273069647,-500.0,0.00025479,2]
[341897613,1731273069656,-500.0,0.00025479,2]
[341897614,1731273069666,-5414.24,0.00025479,2]
[341897615,1731273069675,-500.0,0.00025479,2]
[341897616,1731273069685,-394.77653851,0.00025479,2]
[341897617,1731273069698,-698.350049,0.00025479,7]
[341897618,1731273069707,-500.0,0.00025479,2]
[341897619,1731273069717,-500.0,0.00025479,2]
[341897620,1731273069727,-500.0,0.00025479,2]
[341897621,1731273069737,-379.9688664,0.00025479,2]
[341897622,1731273069746,-698.350049,0.00025479,7]
[341897623,1731273069756,-500.0,0.00025479,2]
[341897624,1731273069766,-11339.09477205,0.00025479,2]
[341897625,1731273070061,-8735.99522795,0.00025479,2]
[341897626,1731273070071,-500.0,0.00025479,2]
[341897627,1731273070082,-500.0,0.00025479,2]
[341897628,1731273070092,-500.0,0.00025479,2]
[341897629,1731273070101,-418.54156762,0.00025479,2]
[341897630,1731273070113,-81.45843238,0.00025479,2]
[341897631,1731273070123,-500.0,0.00025479,2]
[341897632,1731273070134,-500.0,0.00025479,2]
[341897633,1731273070143,-477.88069367,0.00025479,2]
[341897634,1731273070152,-469.34885829,0.00025479,2]
[341897635,1731273070162,-1112.9,0.00025479,2]
[341897636,1731273070171,-500.0,0.00025479,2]
[341897637,1731273070182,-803.9,0.00025479,2]
[341897638,1731273070192,-500.0,0.00025479,2]
[341897639,1731273070206,-500.0,0.00025479,2]
[341897640,1731273070215,-500.0,0.00025479,2]
[341897641,1731273070225,-500.0,0.00025479,2]
[341897642,1731273070235,-4.92115963,0.00025479,2]
[341897643,1731273070393,-2126.10884037,0.00025479,2]
[341897644,1731273070402,-500.0,0.00025479,2]
[341897645,1731273070411,-513.31,0.00025479,2]
[341897646,1731273070421,-500.0,0.00025479,2]
[341897647,1731273070430,-306.83115963,0.00025479,2]
[341897648,1731273070859,-1000.0,0.000246,2]
[341897649,1731273070868,-151.0,0.00024657,7]
[341897650,1731273070879,-151.0,0.00024931,7]
[341897651,1731273070888,-151.0,0.00025,7]
[341897652,1731273070898,-253.06884037,0.00025479,2]
[341897653,1731273070907,-1660.271701,0.00025479,7]
[341897654,1731273070917,-500.0,0.00025479,2]
[341897655,1731273070926,-500.0,0.00025479,2]
[341897656,1731273070936,-369.53366413,0.00025479,2]
[341897657,1731273070948,-1660.271701,0.00025479,7]
[341897658,1731273070958,-500.0,0.00025479,2]
[341897659,1731273070967,-1050.29,0.00025479,2]
[341897660,1731273070977,-500.0,0.00025479,2]
[341897661,1731273070987,-500.0,0.00025479,2]
[341897662,1731273070997,-500.0,0.00025479,2]
[341897663,1731273071006,-500.0,0.00025479,2]
[341897664,1731273071016,-500.0,0.00025479,2]
[341897665,1731273071029,-500.0,0.00025479,2]
[341897666,1731273071038,-500.0,0.00025479,2]
[341897667,1731273071048,-1491.75,0.00025479,2]
[341897668,1731273071059,-336.659977,0.00025479,7]
[341897669,1731273071070,-2748.59,0.00025479,2]
[341897670,1731273071079,-500.0,0.00025479,2]
[341897671,1731273071089,-336.659977,0.00025479,7]
[341897672,1731273071099,-500.0,0.00025479,2]
[341897673,1731273071109,-500.0,0.00025479,2]
[341897674,1731273071119,-500.0,0.00025479,2]
[341897675,1731273071129,-500.0,0.00025479,2]
[341897676,1731273071138,-500.0,0.00025479,2]
[341897677,1731273071148,-500.0,0.00025479,2]
[341897678,1731273071157,-500.0,0.00025479,2]
[341897679,1731273071166,-516.94087268,0.00025479,2]
[341897680,1731273071175,-500.0,0.00025479,2]
[341897681,1731273071185,-500.0,0.00025479,2]
[341897682,1731273071195,-500.0,0.00025479,2]
[341897683,1731273071207,-160.458438,0.00025479,7]
[341897684,1731273071217,-500.0,0.00025479,2]
[341897685,1731273071226,-773.93,0.00025479,2]
[341897686,1731273071235,-500.0,0.00025479,2]
[341897687,1731273071245,-1586.12,0.00025479,2]
[341897688,1731273071255,-961.51697,0.00025479,7]
[341897689,1731273071264,-500.0,0.00025479,2]
[341897690,1731273071274,-160.458438,0.00025479,7]
[341897691,1731273071283,-1922.26,0.00025479,2]
[341897692,1731273071292,-961.51697,0.00025479,7]
[341897693,1731273071302,-500.0,0.00025479,2]
[341897694,1731273071312,-516.96119422,0.00025479,2]
[341897695,1731273071321,-500.0,0.00025479,2]
[341897696,1731273071331,-500.0,0.00025479,2]
[341897697,1731273071340,-500.0,0.00025479,2]
[341897698,1731273071350,-670.25,0.00025479,2]
[341897699,1731273071359,-675.18,0.00025479,2]
[341897700,1731273071369,-500.0,0.00025479,2]
[341897701,1731273071378,-2561.32,0.00025479,2]
[341897702,1731273071387,-500.0,0.00025479,2]
[341897703,1731273071396,-1527.34,0.00025479,2]
[341897704,1731273071406,-3827.48,0.00025479,2]
[341897705,1731273071415,-449.0306752,0.00025479,2]
[341897706,1731273071424,-500.0,0.00025479,2]
[341897707,1731273071433,-500.0,0.00025479,2]
[341897708,1731273071443,-500.0,0.00025479,2]
[341897709,1731273071455,-500.0,0.00025479,2]
[341897710,1731273071464,-500.0,0.00025479,2]
[341897711,1731273071473,-291.49998199,0.00025479,2]
[341897712,1731273071483,-500.0,0.00025479,2]
[341897713,1731273071492,-241.76883511,0.00025479,2]
[341897714,1731273071502,-1169.95,0.00025479,2]
[341897715,1731273071512,-707.03,0.00025479,2]
[341897716,1731273071521,-759.32,0.00025479,2]
[341897717,1731273071531,-1557.06,0.00025479,2]
[341897718,1731273071540,-500.0,0.00025479,2]
[341897719,1731273071550,-500.0,0.00025479,2]
[341897720,1731273071560,-500.0,0.00025479,2]
[341897721,1731273071569,-500.0,0.00025479,2]
[341897722,1731273071579,-1370.64,0.00025479,2]
[341897723,1731273071588,-743.1,0.00025479,2]
[341897724,1731273071598,-500.0,0.00025479,2]
[341897725,1731273071607,-500.0,0.00025479,2]
[341897726,1731273071617,-500.0,0.00025479,2]
[341897727,1731273071626,-500.0,0.00025479,2]
[341897728,1731273071635,-500.0,0.00025479,2]
[341897729,1731273071645,-591.39,0.00025479,2]
[341897730,1731273071655,-508.19318274,0.00025479,2]
[341897731,1731273071673,-2665.94,0.00025479,2]
[341897732,1731273071691,-599.56962029,0.00025479,2]
[341897733,1731273071702,-2079.954961,0.00025479,7]
[341897734,1731273071712,-558.63,0.00025479,2]
[341897735,1731273071722,-500.0,0.00025479,2]
[341897736,1731273071731,-250.0,0.00025479,2]
[341897737,1731273071741,-500.0,0.00025479,2]
[341897738,1731273071750,-2079.954961,0.00025479,7]
[341897739,1731273071759,-500.0,0.00025479,2]
[341897740,1731273071769,-1539.97,0.00025479,2]
[341897741,1731273071779,-864.24,0.00025479,2]
[341897742,1731273071790,-500.0,0.00025479,2]
[341897743,1731273071880,-368.348036,0.00025479,7]
[341897744,1731273071892,-209.38879218,0.00025479,2]
[341897745,1731273071902,-500.0,0.00025479,2]
[341897746,1731273071911,-500.0,0.00025479,2]
[341897747,1731273071921,-500.0,0.00025479,2]
[341897748,1731273071930,-368.348036,0.00025479,7]
[341897749,1731273071939,-391.65227185,0.00025479,2]
[341897750,1731273071958,-108.34772815,0.00025479,2]
[341897751,1731273071967,-294.57479255,0.00025479,2]
[341897752,1731273071979,-536.32520745,0.00025479,2]
[341897753,1731273071988,-43.66986108,0.00025479,2]
[341897755,1731273122044,-300.0,0.00022259,2]
[341897756,1731273122075,-19.064292,0.0002226,2]
[341897757,1731273122112,-133.935708,0.0002226,2]
[341897758,1731273122146,-153.0,0.0002226,2]
[341897759,1731273122175,-153.0,0.0002226,2]
[341897761,1731273122204,-60.064292,0.0002226,2]
[341897762,1731273122252,-92.935708,0.0002226,2]
[341897766,1731273122441,-153.0,0.0002226,2]
[341897767,1731273122473,-153.0,0.0002226,2]
[341897768,1731273122511,-87.228806,0.0002226,2]
[341897769,1731273122545,-65.771194,0.0002226,2]
[341897770,1731273122573,-153.0,0.0002226,2]
[341897771,1731273122602,-153.0,0.0002226,2]
[341897772,1731273122630,-153.0,0.0002226,2]
[341897773,1731273122659,-133.11099577,0.0002226,2]
[341897774,1731273122750,-19.88900423,0.0002226,2]
[341897775,1731273122781,-153.0,0.0002226,2]
[341897776,1731273122810,-153.0,0.0002226,2]
[341897777,1731273122838,-11.381609,0.0002226,2]
[341897778,1731273122873,-141.618391,0.0002226,2]
[341897779,1731273122901,-153.0,0.0002226,2]
[341897780,1731273122929,-153.0,0.0002226,2]
[341897781,1731273122957,-153.0,0.0002226,2]
[341897782,1731273122988,-57.26379877,0.0002226,2]
[341897783,1731273123026,-95.73620123,0.0002226,2]
[341897784,1731273123061,-153.0,0.0002226,2]
[341897785,1731273123095,-153.0,0.0002226,2]
[341897786,1731273123124,-153.0,0.0002226,2]
[341897787,1731273123156,-103.14598854,0.00022512,2]
[341897788,1731273123192,-657.88218977,0.00022512,2]
[341897789,1731273232333,1067.6,0.00031485,120]
[341897790,1731273233854,219.38825,0.00021851,2]
[341897791,1731273318874,1169.27083333,0.00022035,2]
[341897793,1731273322244,163.83,0.00021707,2]
[341897794,1731273384429,5774.23053898,0.00021,2]
[341897795,1731273400420,165.368327,0.00013973,2]
[341897799,1731273516470,2275.918949,0.00020394,2]
[341897800,1731273521473,181.924,0.0002058,2]
[341897813,1731273773083,386.107891,0.00019972,2]
[341897815,1731273816937,172.5565258,0.00019997,2]
[341897822,1731274039298,24900.0,0.0001999,2]
[341897828,1731274099767,702.60504,0.00019986,2]
[341897829,1731274111174,-579.99506853,0.00020872,2]
[341897831,1731274111410,-163.36768481,0.00020886,2]
[341897832,1731274111451,-416.62738372,0.00020886,2]
[341897833,1731274111482,-326.73536962,0.00020899,2]
[341897834,1731274111517,-207.48311302,0.00020899,2]
[341897837,1731274136083,-300.0,0.00020972,2]
[341897838,1731274136298,-300.0,0.00020972,2]
[341897839,1731274136331,-177.24692573,0.00020973,2]
[341897840,1731274136367,-322.75307427,0.00020973,2]
[341897841,1731274136397,-454.49385146,0.00020973,2]
[341897842,1731274136433,-45.50614854,0.00020973,2]
[341897843,1731274136462,-430.54383457,0.00020973,2]
[341897844,1731274138458,165.368327,0.00013973,2]
[341897851,1731274161089,-300.0,0.00020972,2]
[341897852,1731274161119,-300.0,0.00020972,2]
[341897853,1731274161147,-69.45616543,0.00020973,2]
[341897854,1731274161174,-148.40163699,0.00020973,2]
[341897855,1731274161206,-351.59836301,0.00020973,2]
[341897856,1731274161234,-318.15080357,0.00020973,2]
[341897859,1731274186244,-847.6099418,0.00020899,2]
[341897860,1731274186484,-847.6099418,0.00020899,2]
[341897861,1731274186518,-847.6099418,0.00020899,2]
[341897862,1731274186554,-847.6099418,0.00020899,2]
[341897863,1731274186593,-847.6099418,0.00020899,2]
[341897864,1731274186638,-583.01365855,0.00020899,2]
[341897868,1731274211105,-7.13487657,0.00020899,2]
[341897869,1731274211140,-936.89633258,0.00020955,2]
[341897870,1731274211179,-232.37450075,0.00020955,2]
[341897871,1731274211208,-328.2655511,0.00020973,2]
[341897886,1731274232694,-171.7344489,0.00020973,2]
[341897888,1731274232703,-500.0,0.00020973,2]
[341897889,1731274232712,-500.0,0.00020973,2]
[341897890,1731274232721,-200.15924499,0.00020973,2]
[341897891,1731274232730,-500.0,0.00020973,2]
[341897892,1731274232740,-500.0,0.00020973,2]
[341897893,1731274232749,-500.0,0.00020973,2]
[341897895,1731274232759,-558.56188001,0.00020973,2]
[341897896,1731274232767,-300.0,0.00020989,2]
[341897898,1731274232777,-300.0,0.00020989,2]
[341897900,1731274232785,-322.74,0.0002099,3]
[341897902,1731274232794,-771.4442619,0.00020999,2]
[341897904,1731274232804,-475.42451903,0.00020999,2]
[341897906,1731274232813,-273.4658006,0.00020999,2]
[341897908,1731274232823,-383.52795878,0.00020999,2]
[341897911,1731274232832,-330.28110383,0.00020999,2]
[341897914,1731274232841,-500.0,0.00020999,2]
[341897917,1731274232851,-500.0,0.00020999,2]
[341897920,1731274232860,-500.0,0.00020999,2]
[341897922,1731274232869,-500.0,0.00020999,2]
[341897924,1731274232878,-500.0,0.00020999,2]
[341897926,1731274232889,-500.0,0.00020999,2]
[341897928,1731274232898,-323.24397877,0.00020999,2]
[341897930,1731274232907,-263.52852586,0.00020999,2]
[341897932,1731274232916,-500.0,0.00020999,2]
[341897934,1731274232926,-500.0,0.00020999,2]
[341897936,1731274232935,-242.41691247,0.00020999,2]
[341897938,1731274232944,-500.0,0.00020999,2]
[341897940,1731274232953,-500.0,0.00020999,2]
[341897943,1731274232962,-500.0,0.00020999,2]
[341897945,1731274232971,-500.0,0.00020999,2]
[341897947,1731274232981,-385.09131927,0.00020999,2]
[341897949,1731274232990,-500.0,0.00020999,2]
[341897951,1731274232999,-500.0,0.00020999,2]
[341897953,1731274233008,-500.0,0.00020999,2]
[341897955,1731274233017,-500.0,0.00020999,2]
[341897957,1731274233027,-500.0,0.00020999,2]
[341897959,1731274233036,-212.71832495,0.00020999,2]
[341897961,1731274233045,-500.0,0.00020999,2]
[341897963,1731274233054,-500.0,0.00020999,2]
[341897965,1731274233063,-629.22904102,0.00020999,2]
[341897967,1731274233072,-500.0,0.00020999,2]
[341897969,1731274233081,-500.0,0.00020999,2]
[341897971,1731274233090,-500.0,0.00020999,2]
[341897973,1731274233100,-500.0,0.00020999,2]
[341897975,1731274233109,-500.0,0.00020999,2]
[341897977,1731274233119,-500.0,0.00020999,2]
[341897979,1731274233129,-500.0,0.00020999,2]
[341897981,1731274233141,-500.0,0.00020999,2]
[341897983,1731274233150,-500.0,0.00020999,2]
[341897985,1731274233159,-500.0,0.00020999,2]
[341897987,1731274233168,-500.0,0.00020999,2]
[341897989,1731274233177,-500.0,0.00020999,2]
[341897991,1731274233186,-500.0,0.00020999,2]
[341897993,1731274233195,-526.06711192,0.00020999,2]
[341897995,1731274233204,-500.0,0.00020999,2]
[341897997,1731274233213,-500.0,0.00020999,2]
[341897999,1731274233222,-500.0,0.00020999,2]
[341898001,1731274233230,-500.0,0.00020999,2]
[341898003,1731274233239,-500.0,0.00020999,2]
[341898005,1731274233249,-500.0,0.00020999,2]
[341898007,1731274233258,-500.0,0.00020999,2]
[341898009,1731274233268,-500.0,0.00020999,2]
[341898011,1731274233278,-500.0,0.00020999,2]
[341898013,1731274233287,-500.0,0.00020999,2]
[341898015,1731274233296,-500.0,0.00020999,2]
[341898017,1731274233306,-500.0,0.00020999,2]
[341898019,1731274233314,-500.0,0.00020999,2]
[341898021,1731274233323,-500.0,0.00020999,2]
[341898023,1731274233333,-500.0,0.00020999,2]
[341898025,1731274233343,-500.0,0.00020999,2]
[341898027,1731274233352,-500.0,0.00020999,2]
[341898029,1731274233361,-500.0,0.00020999,2]
[341898031,1731274233371,-500.0,0.00020999,2]
[341898033,1731274233381,-500.0,0.00020999,2]
[341898035,1731274233391,-422.27528911,0.00020999,2]
[341898037,1731274233407,-500.0,0.00020999,2]
[341898039,1731274233416,-500.0,0.00020999,2]
[341898041,1731274233426,-500.0,0.00020999,2]
[341898043,1731274233437,-500.0,0.00020999,2]
[341898045,1731274233447,-500.0,0.00020999,2]
[341898047,1731274233456,-500.0,0.00020999,2]
[341898049,1731274233466,-500.0,0.00020999,2]
[341898051,1731274233476,-258.30019153,0.00020999,2]
[341898054,1731274233489,-241.69980847,0.00020999,2]
[341898056,1731274233499,-500.0,0.00020999,2]
[341898058,1731274233508,-500.0,0.00020999,2]
[341898060,1731274233518,-3147.31528991,0.00021,2]
[341898062,1731274233529,-289.64715167,0.00021,2]
[341898064,1731274233541,-205143.26085764,0.00021,2]
[341898066,1731274233553,-6584.17579947,0.00021,2]
[341898068,1731274233565,-15898.71520512,0.00021,2]
[341898071,1731274233577,-250.0,0.00021,2]
[341898151,1731274238888,-152.40601173,0.00020931,2]
[341898153,1731274238899,-175.46144406,0.00020973,2]
[341898155,1731274238908,-132.65113745,0.00020973,2]
[341898162,1731274238970,-367.34886255,0.00020973,2]
[341898164,1731274238980,-268.95,0.0002099,3]
[341898166,1731274238989,-138.07458675,0.00021,2]
[341898168,1731274239001,-48416.91750928,0.00021,2]
[341898175,1731274239057,-43759.44813087,0.00021,2]
[341898177,1731274239069,-1846.85900455,0.00021,2]
[341898180,1731274239084,-16488.21152013,0.00021,2]
[341898182,1731274239100,-1325.86108293,0.00021,2]
[341898185,1731274239115,-272.71,0.00021,2]
[341898188,1731274239129,-782.0063738,0.00021,2]
[341898191,1731274239152,-7196.81914282,0.00021,2]
[341898193,1731274239167,-66054.17530222,0.00021,2]
[341898334,1731274240467,-2570.000001,0.00021,2]
[341898336,1731274240483,-50862.22399951,0.00021,2]
[341898339,1731274240498,-7858.5,0.00021,2]
[341898379,1731274240856,-377.69,0.00021,2]
[341898381,1731274240869,-12429.1240214,0.00021,2]
[341898572,1731274243759,-500.0,0.00020973,2]
[341898574,1731274243770,-9537.99749,0.00021,2]
[341898628,1731274244304,-0.01138914,0.00021,2]
[341898632,1731274244337,-3932.7,0.00021,2]
[341898720,1731274246688,-7860.0,0.00021,2]
[341898722,1731274246699,-200062.03453423,0.00021,2]
[341898741,1731274321744,-657.88241755,0.00020877,2]
[341898742,1731274321793,-511.38841578,0.00020877,2]
[341898743,1731274321826,-146.49400177,0.0002099,3]
[341898744,1731274321864,-405.2809599,0.0002099,3]
[341898745,1731274326693,5556.8792231,0.0002,3]
[341898747,1731274360821,3768.841384,0.00020459,2]
[341898748,1731274427304,1585.9145318,0.00020207,2]
[341898750,1731274523899,156.735,0.0002852,120]
[341898751,1731274562711,153671.94619876,0.0002079,2]
[341898752,1731274571468,821.6059629,0.00020011,2]
[341898753,1731274577776,249.736098,0.00020011,2]
[341898754,1731274587190,42661.08352752,0.0002079,2]
[341898756,1731274721474,181.92449113,0.0002058,2]
[341898757,1731274769833,22254.35583063,0.00019992,2]
[341898758,1731274769860,2645.64416937,0.00019992,2]
[341898760,1731274834816,91.7859,0.00028,120]
[341898761,1731274834839,111.44573,0.00028,120]
[341898762,1731274843824,165.851511,0.00013973,2]
[341898763,1731274871498,1169.27083333,0.00020844,2]
[341898764,1731274907459,179.073641,0.00019718,2]
[341898769,1731275183715,1169.27083333,0.00020844,2]
[341898784,1731275350373,-341.965119,0.00020863,2]
[341898785,1731275350401,-151.99773526,0.00020863,2]
[341898786,1731275350431,-198.34047919,0.00020881,2]
[341898789,1731275375680,-607.37545855,0.00020869,2]
[341898790,1731275394447,2512.560922,0.00019992,2]
[341898791,1731275395010,2512.560922,0.00020677,2]
[341898792,1731275400500,-561.89537478,0.00020869,2]
[341898793,1731275400531,-12.70021122,0.00020943,2]
[341898807,1731275431725,-211.04845185,0.00020944,2]
[341898808,1731275431735,-300.0,0.00020972,2]
[341898809,1731275431744,-300.0,0.00020972,2]
[341898810,1731275431754,-248.22676168,0.00020973,2]
[341898811,1731275431768,-251.77323832,0.00020973,2]
[341898812,1731275431778,-91.77588574,0.00020973,2]
[341898813,1731275431796,-408.22411426,0.00020973,2]
[341898814,1731275431806,-500.0,0.00020973,2]
[341898815,1731275431817,-500.0,0.00020973,2]
[341898816,1731275431828,-508.64599057,0.00020973,2]
[341898817,1731275431838,-500.0,0.00020973,2]
[341898818,1731275431847,-554.70390979,0.00020973,2]
[341898819,1731275431857,-503.60386218,0.00020973,2]
[341898820,1731275431867,-129.3411232,0.00020973,2]
[341898821,1731275432112,-370.6588768,0.00020973,2]
[341898822,1731275432122,-500.0,0.00020973,2]
[341898823,1731275432131,-501.09417111,0.00020973,2]
[341898824,1731275432140,-514.85352787,0.00020973,2]
[341898825,1731275432150,-511.70581619,0.00020973,2]
[341898826,1731275432159,-500.0,0.00020973,2]
[341898827,1731275432169,-500.0,0.00020973,2]
[341898828,1731275432179,-239.74,0.0002099,3]
[341898829,1731275432189,-199.79,0.0002099,3]
[341898830,1731275432198,-599.37,0.0002099,3]
[341898831,1731275432207,-500.0,0.00020999,2]
[341898832,1731275432217,-500.0,0.00020999,2]
[341898833,1731275432226,-500.0,0.00020999,2]
[341898834,1731275432235,-500.0,0.00020999,2]
[341898835,1731275432244,-232.98214094,0.00020999,2]
[341898836,1731275432256,-267.01785906,0.00020999,2]
[341898837,1731275432265,-500.0,0.00020999,2]
[341898838,1731275432276,-500.0,0.00020999,2]
[341898839,1731275432285,-165.87316048,0.00020999,2]
[341898840,1731275432295,-500.0,0.00020999,2]
[341898841,1731275432304,-254.40020512,0.00020999,2]
[341898842,1731275432314,-300.0,0.00020999,2]
[341898843,1731275432323,-167.73760096,0.00020999,2]
[341898844,1731275432333,-500.0,0.00020999,2]
[341898845,1731275432342,-370.0,0.00020999,2]
[341898846,1731275432351,-500.0,0.00020999,2]
[341898847,1731275432363,-500.0,0.00020999,2]
[341898848,1731275432372,-500.0,0.00020999,2]
[341898849,1731275432381,-500.0,0.00020999,2]
[341898850,1731275432390,-85.41742431,0.00020999,2]
[341898851,1731275432401,-414.58257569,0.00020999,2]
[341898852,1731275432411,-500.0,0.00020999,2]
[341898853,1731275432420,-244.33144128,0.00020999,2]
[341898854,1731275432429,-255.54298624,0.00020999,2]
[341898855,1731275432438,-753.2492818,0.00021,2]